Cogmind - Beta 16 --- EXPLORER MODE // 2025.10.27 @ 11:46:14 Player: Memoir Result: Self-destructed Performance ------------- Evolutions (1) 500 Regions Visited (2) 400 Robots Destroyed (7) 35 Value Destroyed (97) 97 Prototype IDs (1) 20 Alien Tech Used (0) 0 Bonus (0) 0 TOTAL SCORE: 1052 Bonus ------- None Cogmind --------- Core Integrity 373/400 Matter 273/300 Energy 33/125 System Corruption 1% Temperature Cool (7) Movement Rolling (95) Ox1 Location -9/Materials Parts ------- > --- POWER (1) -------- Light Ion Engine > --- PROPULSION (3) --- Wheel > --- UTILITY (4) ------ Medium Storage Unit Machine Analyzer Improved Terrain Scanner Seismic Detector > --- WEAPON (2) ------- Light EM Pulse Cannon Light Assault Rifle > --- INVENTORY (10) --- Light Ion Engine Hardened Light Armor Plating Medium Laser Faulty Advanced Beam Cannon Grenade Launcher Mining Laser Peak State ------------ > --- POWER ------------ Light Ion Engine > --- PROPULSION ------- Wheel Wheel Compact Wheel > --- UTILITY ---------- Medium Storage Unit Machine Analyzer Improved Terrain Scanner Seismic Detector > --- WEAPON ----------- Advanced Beam Cannon Light Assault Rifle > --- INVENTORY -------- Light Ion Engine Hardened Light Armor Plating Medium Laser Light EM Pulse Cannon Grenade Launcher Mining Laser [Rating: 16] Favorites ----------- Power Light Ion Engine Engine Light Ion Engine Propulsion Wheel Wheel Wheel Utility Medium Storage Unit Device Seismic Detector Storage Medium Storage Unit Processor Machine Analyzer Weapon Light Assault Rifle Energy Gun Medium Laser Energy Cannon Light EM Pulse Cannon Ballistic Gun Light Assault Rifle Special Weapon Mining Laser Build | -11 -10 -9 ------- Run | Yrd Mat Mat Slots Evolved 3 | . 1 2 Power . | . . . Propulsion 1 | . . 1 Utility 2 | . 1 1 Weapon . | . . . Parts Attached 13 | 7 3 3 Power 1 | 1 . . Engine 1 | 1 . . Core . | . . . Reactor . | . . . Propulsion 3 | 2 1 . Treads . | . . . Leg . | . . . Wheel 3 | 2 1 . Hover . | . . . Flight . | . . . Utility 4 | 2 1 1 Device 2 | 1 1 . Storage 1 | 1 . . Processor 1 | . . 1 Hackware . | . . . Protection . | . . . Artifact . | . . . Weapon 5 | 2 1 2 Energy Gun 1 | 1 . . Energy Cannon 2 | . . 2 Ballistic Gun 1 | 1 . . Ballistic Cannon . | . . . Launcher . | . . . Special Weapon 1 | . 1 . Impact Weapon . | . . . Slashing Weapon . | . . . Piercing Weapon . | . . . Special Melee Weapon . | . . . Unidentified Prototypes 1 | . . 1 Parts Lost 2 | . . 2 Power . | . . . Propulsion 2 | . . 2 Utility . | . . . Weapon . | . . . Highest Loss Streak 2 | . . 2 To Critical Strikes . | . . . Average Backups 2 | . 2 3 Power . | . . 1 Propulsion . | . . . Utility . | . . . Weapon 1 | . 1 2 Tool/Special . | . . . Unused Backups 4 | . 1 3 Power 1 | . . 1 Propulsion . | . . . Utility 2 | . 1 1 Weapon 1 | . . 1 Tool/Special . | . . . Average Slot Usage (%) 99 | . 100 98 Engine 11 | . 12 10 Wheel 26 | . 25 29 Device 22 | . 25 20 Storage 11 | . 12 10 Processor 4 | . . 8 Energy Gun 2 | . 3 2 Ballistic Gun 11 | . 12 10 Special Weapon 8 | . 8 6 Peak Build Rating 16 | 7 10 16 Average Rating 10 | 4 10 13 On Entrance 5 | . 7 10 Avg Prop Armor Cover (%) . | . . . Naked Turns . | . . . Heaviest Build 18 | 17 18 18 Greatest Support 36 | 20 20 36 Greatest Overweight (x) 4 | 4 . . Average Overweight (x) . | . . . Largest Inventory Capacity 10 | 10 10 10 Average Capacity 9 | 9 10 10 Most Carried 6 | 3 4 6 Average Carried 2 | . 2 3 Final Capacity 10 | 10 10 10 Final Carried 6 | 1 4 6 Class Distribution -------------------- 64% | Hacker-Mutant 35% | Scavenger-Mutant Dominant Class ---------------- Hacker-Mutant | -10/Materials Scavenger-Mutant | -9/Materials Resources | -11 -10 -9 ----------- Run | Yrd Mat Mat Matter Collected 394 | 218 100 76 Remotely . | . . . Salvage Created 235 | 92 78 65 Parts 15 | 7 4 4 Haulers Intercepted . | . . . Recyclers Shooed . | . . . Parts Field Recycled . | . . . Retrieved Matter . | . . . Parts Self-Destructed . | . . . Prevented . | . . . Parts Restored . | . . . Kills | -11 -10 -9 ------- Run | Yrd Mat Mat Combat Hostiles Destroyed 3 | . 2 1 Guns 3 | . 2 1 Classes Destroyed 5 | 2 1 2 Tunneler 1 | 1 . . Recycler 2 | 1 1 . Mechanic 1 | . . 1 Swarmer 2 | . 2 . Sentry 1 | . . 1 Best Kill Streak 2 | 1 2 1 Combat Bots Only 2 | . 2 1 Max Kills in Single Turn 1 | 1 1 1 Gunslinging . | . . . Exploded . | . . . Melee . | . . . Uniques/NPCs Destroyed . | . . . Combat | -11 -10 -9 -------- Run | Yrd Mat Mat Hostile Shots Fired 31 | . 7 24 Missed 8 | . 3 5 Hits 23 | . 4 19 Melee 6 | . . 6 Projectile 17 | . 4 13 Damage Taken 234 | . 20 214 Core 27 | . . 27 Absorbed by Shields . | . . . Ignored by Resistances 140 | . 15 125 Core Remaining (%) 100 | 100 100 . Volleys Fired 59 | 20 21 18 Largest 2 | 2 2 2 Hottest 120 | 70 100 120 Shots Fired 79 | 23 24 32 Gun 53 | 23 6 24 Cannon 2 | . . 2 Launcher . | . . . Special 24 | . 18 6 Kinetic 41 | 20 3 18 Thermal 36 | 3 21 12 Explosive . | . . . Electromagnetic 2 | . . 2 Robot Hit Streak 15 | 15 6 13 Robot Miss Streak 2 | 1 1 2 Penetration Max . | . . . Secondary Targets . | . . . Shots Hit Robots 46 | 20 6 20 Core Hits 11 | 5 3 3 Critical Kills . | . . . Critical Parts Destroyed . | . . . Critical Strikes . | . . . Melee Attacks . | . . . Impact . | . . . Slashing . | . . . Piercing . | . . . Sneak Attacks . | . . . Combat Hostiles . | . . . Follow-up Attacks . | . . . Damage Inflicted 461 | 159 79 223 Guns 374 | 159 55 160 Cannons 39 | . . 39 Explosions . | . . . Melee . | . . . Ramming . | . . . Kinetic 259 | 146 16 97 Thermal 163 | 13 63 87 Explosive . | . . . Electromagnetic 39 | . . 39 Impact . | . . . Slashing . | . . . Piercing . | . . . Highest Corruption 1 | . . 1 Average Corruption 1 | . . 1 Corruption Purged . | . . . Corruption Blocked . | . . . Overload Shots . | . . . Overflow Damage . | . . . Projectiles . | . . . Explosions . | . . . Melee . | . . . Knockbacks . | . . . Impact . | . . . Kinetic . | . . . Secondary . | . . . Self-Inflicted Damage . | . . . Shots . | . . . Rammed . | . . . Targets Rammed . | . . . Kicked . | . . . Crushed . | . . . Highest Temperature 88 | 50 60 88 Average Temperature 22 | 26 18 27 Received Heat Transfer 66 | . . 66 Siege Activations . | . . . Martial Activations . | . . . Shielding Activations . | . . . Robots Disrupted . | . . . Combat Hostiles . | . . . Robots Corrupted . | . . . Combat Hostiles . | . . . Parts Fried . | . . . Impact Corruptions . | . . . Robots Melted . | . . . Combat Hostiles . | . . . Parts Melted 1 | . . 1 Heat Transferred 433 | 37 161 235 Parts Sabotaged . | . . . Parts Stolen . | . . . Parts Stripped . | . . . Power Chain Reactions . | . . . Alert | -11 -10 -9 ------- Run | Yrd Mat Mat Maximum Alert Level . | . . . Low Security (%) 100 | 100 100 100 Level 1 . | . . . Level 2 . | . . . Level 3 . | . . . Level 4 . | . . . Level 5 . | . . . High Security . | . . . Max Security . | . . . Peak Influence 36 | . 36 30 Initial . | . . . Average 3 | . 5 2 Influence Increases 139 | 10 74 55 Destroy 0b10 Robot/C 60 | . 40 20 Destroy 0b10 Robot/NC 20 | 10 5 5 Destroy Leader 20 | . 10 10 Successful Hack 3 | . 3 . Destroy Structure 21 | . 16 5 Lose Combat Pursuer 15 | . . 15 Influence Decreases 139 | 10 74 55 Time Decay 137 | 10 74 53 Lost Part 2 | . . 2 Squads Dispatched . | . . . Investigation . | . . . Extermination . | . . . Reinforcement . | . . . Assault . | . . . Garrison . | . . . Intercept . | . . . Searches Triggered . | . . . Construction Impeded . | . . . Haulers Reinforced . | . . . Active Scanning Responses . | . . . Cargo Convoy Interrupts . | . . . Stealth | -11 -10 -9 --------- Run | Yrd Mat Mat Distress Signals 1 | . . 1 Communications Jammed . | . . . Distress Signals . | . . . Times Spotted 10 | . 5 5 Peak Tracking Total 3 | . 3 3 Tactical Retreats 1 | . . 1 Traps | -11 -10 -9 ------- Run | Yrd Mat Mat Traps Triggered . | . . . Indirectly . | . . . Trap Hack Attempts . | . . . Triggered . | . . . Disarmed . | . . . Reprogrammed . | . . . Reused . | . . . Traps Extracted . | . . . Installed . | . . . Triggered . | . . . Machines | -11 -10 -9 ---------- Run | Yrd Mat Mat Machines Disabled . | . . . Max in Single Turn . | . . . Machines Repaired . | . . . Machines Dismantled . | . . . Machines Sabotaged . | . . . Overloaded Fab Kills . | . . . Hacking | -11 -10 -9 --------- Run | Yrd Mat Mat Machines Accessed 4 | . 2 2 Terminals 4 | . 2 2 Fabricators . | . . . Repair Stations . | . . . Recycling Units . | . . . Scanalyzers . | . . . Garrison Access . | . . . Total Hacks 7 | . 4 3 Successful 5 | . 3 2 Failed 2 | . 1 1 Catastrophic . | . . . Database Lockouts . | . . . Manual 4 | . 3 1 Terminals 7 | . 4 3 Fabricators . | . . . Repair Stations . | . . . Recycling Units . | . . . Scanalyzers . | . . . Garrison Access . | . . . Terminal Hacks 3 | . 1 2 Record 1 | . . 1 Locate Traps 1 | . 1 . Zone Layout 1 | . . 1 Fabricator Hacks . | . . . Repair Station Hacks . | . . . Recycling Unit Hacks . | . . . Scanalyzer . | . . . Garrison Access Hacks . | . . . Unauthorized Hacks 2 | . 2 . Terminals 2 | . 2 . Botnet 2 | . 2 . Fabricators . | . . . Repair Stations . | . . . Recycling Units . | . . . Scanalyzers . | . . . Garrison Access . | . . . Data Cores Recovered . | . . . Used . | . . . Hacking Detections 2 | . 2 . Full Trace Events . | . . . Feedback Events . | . . . Feedback Blocked . | . . . Robot Schematics Acquired . | . . . Robots Built . | . . . Authchips . | . . . Time . | . . . Total Robot Build Rating . | . . . Part Schematics Acquired . | . . . Parts Built . | . . . Authchips . | . . . Time . | . . . Total Part Build Rating . | . . . Part Studies Acquired . | . . . Parts Repaired . | . . . Time . | . . . Parts Recycled . | . . . Recycled Matter . | . . . Retrieved Matter . | . . . Retrieved Components . | . . . Parts Scanalyzed . | . . . Part Schematics Acquired . | . . . Parts Damaged . | . . . Bothacking | -11 -10 -9 ------------ Run | Yrd Mat Mat Used RIF Installer . | . . . Robots Hacked . | . . . Non-combat . | . . . Combat . | . . . Robot Hacks Applied . | . . . Relay Couplers Released . | . . . Fabnet Peak Effective % . | . . . Robots Rewired . | . . . Allies Hacked . | . . . Hacks Repelled . | . . . Allies | -11 -10 -9 -------- Run | Yrd Mat Mat Total Allies . | . . . Largest Group . | . . . Highest-Rated Group . | . . . Highest-Rated Ally . | . . . Total Orders . | . . . Ally Attacks . | . . . Total Damage . | . . . Kills . | . . . Allies Corrupted . | . . . Allies Melted . | . . . Intel | -11 -10 -9 ------- Run | Yrd Mat Mat Active Infowar (turns) 647 | 103 298 246 Terrain 544 | . 298 246 Seismic 647 | 103 298 246 Machine Analysis 232 | . . 232 Robot Analysis Total . | . . . Derelict Logs Recovered . | . . . Drone Launches . | . . . Drone Recoveries . | . . . Exploration | -11 -10 -9 ------------- Run | Yrd Mat Mat Turns Passed 661 | 117 298 246 Spaces Moved 506 | 65 249 192 Core 30 | 30 . . Treads . | . . . Legs . | . . . Wheels 476 | 35 249 192 Hover . | . . . Flight . | . . . Fastest Speed 50 | 50 80 86 Average Speed 84 | 97 80 86 Slowest Speed 250 | 250 80 86 Overloaded Moves . | . . . Propulsion Burnouts . | . . . Robots Hopped . | . . . Potential Cave-ins . | . . . Cave-ins Triggered . | . . . Exploration Rate (%) 18 | 4 33 17 Regions Visited 2 Branch Regions . Pre-discovered Areas . | . . . Known Exits Taken 2 | 1 1 . Unknown Exits Taken . | . . . Scrap Searched . | . . . Spaces Dug 22 | . 17 5 Terrain Destroyed 22 | . 17 5 Melee . | . . . Projectile 22 | . 17 5 AOE . | . . . Terrain Rammed . | . . . Walls Destroyed . | . . . Machines Disabled . | . . . Actions | -11 -10 -9 --------- Run | Yrd Mat Mat Total 615 | 99 286 230 Wait 15 | . 5 10 Move 504 | 64 248 192 Hop . | . . . Pick Up 17 | 8 5 4 Fast Attach . | . . . Attach 10 | 7 1 2 Detach . | . . . Swap 9 | . 5 4 Drop 1 | . 1 . Fire 59 | 20 21 18 Melee . | . . . Ram . | . . . Kick . | . . . Crush . | . . . Escape Stasis . | . . . Rewire . | . . . Trap . | . . . Miscellaneous . | . . . Route ------- -11/Scrapyard -10/Materials (discovered 2 exits: *Mat x2) -9/Materials History --------- Turn | Location | Event 4 | -11/Scrapyard | Identified exit to Materials 4 | -11/Scrapyard | Discovered exit to Materials (range 14) 118 | -11/Scrapyard | Entered Materials 118 | -10/Materials | Evolved 1 slot: Utility x1 151 | -10/Materials | Identified exit to Materials 151 | -10/Materials | Discovered exit to Materials (range 13) 301 | -10/Materials | Build established: Hacker-Mutant 410 | -10/Materials | Discovered exit to Materials (range 4) 416 | -10/Materials | Entered another Materials area 416 | -9/Materials | Evolved 2 slots: Propulsion x1, Utility x1 662 | -9/Materials | Self-destructed Last Messages --------------- 00555_ Terminal x1 00573_ Lgt. Armor Plating melted. 00573_ Y-45 Defender destroyed. 00576_ Acquired 19 matter. 00579_ Acquired Hrd. Light Armor Plating. 00581_ Acquired Lgt. EM Pulse Cannon. 00584_ Connecting with Terminal... >>Layout(Zone) Retrieving Zone 1J layout... Downloaded map data. 00601_ W-16 Scout distress signal alerts nearby ally. 00641_ Acquired Prototype Energy Cannon. 00642_ Identified Adv. Beam Cannon. 00642_ Faulty integration triggers energy drain (-88). 00650_ Wheel destroyed. 00650_ U-05 Engineer builds a Wall. 00653_ Com. Wheel destroyed. 00653_ System corrupted by crushing effect (+1). Map ----- +----------------------------------------------------+ | ?????????????????????????????????????????????????? | | ?????????????????????????????????????????????????? | | ?????????????????????????????????????????????????? | | ?????????????????????????????????????????????????? | | ?????????????????????????????????????????????????? | | ?????????????????????????????????????????????????? | | ?????????????????????????????????????????????????? | | ?????????????????????????????????????????????????? | | ?????????????????????"""?????????????????????????? | | ????????????????????""R"?????????????????????????? | | ????????????????????""?"?????????????????????????? | | ?????????????????????????????????????????????????? | | ?????????????????????????????????????????????????? | | ??????????????????????????????#??????????????????? | | ???????????????#?????????????????????????????????? | | ?????????????????????????????????????????????????? | | ???????????????? ????????????????????????????????? | | ?????????????????????????????????????????????????? | | ????????????????? ???????#????? ? ???????????????? | | ????????????#?????????????#?????????? ???????????? | | ???????????????????????????#?????????????????????? | | ???????????????? ?????? ?????????????????????????? | | ???????????????? ???????????????????? ???????????? | | ?????????????????????????????????????????????????? | | ??????????????????????#########? ????????????????? | | ?????????????????#??? + @ #?????????"""?"""??? | | ??????????????????? ??# b """#?????????"""?"""??? | | ???????????????? ?????+ g """#??#??????"""?"""??? | | ??# #??# # """##?????????????????? | | ??# #??# """ """ # #??????????????????? | | ??# #??# """ """ #####;###??????????????????? | | ??# #??# """ """ ##########?????????????????? | | ??# #??## # #?????????????????? | | ??# ##### # #????#????????????? | | ??# """ """ # #?????????????????? | | ??# """ """ # """ #??#????#?????????? | | ??# """ """ + """ #?????????????????? | | ??# # """ #??#??????????????? | | ??# # """ #?##??????????????? | | ??############ # """ #?????#???????????? | | ?????????????# # #???????#?????????? | | ?????????##### #######"###????????????????? | | ???##????# # #????# #????????????????? | | ????????## T # #????# #????????????????? | | ?????????# # ###### #????????????????? | | ?????????#]] # + #????????????????? | | ########## # # #????????????????? | | #%= # # #???#????????????? | | ## # ######## ## ##??#????????????? | | ###+## #??????# ## #????????????????? | +----------------------------------------------------+ Best States ------------- Heat Dissipation 28 Energy Generation 10 Energy Capacity 125 Matter Stores 300 Matter Capacity 300 Sight Range 16 Terrain Scan Range 16 Terrain Scan Density 10 Resistance: KI 35 Resistance: TH 35 Resistance: EX 35 Resistance: EM 35 Resistance: I 35 Resistance: S 35 Resistance: P 35 Evasion (%) 50 Offensive Hacking 20 Item Schematics ----------------- None Robot Schematics ------------------ None Fabricated ------------ Nothing Repaired ---------- Nothing Studied --------- None Alien Tech Used ----------------- None Achievements -------------- True Hacker Challenges ------------ None Game ------ Seed DisassembledResetExtractor Manual? 0 Play Time 00:13:27 Cumulative 7.9 hours Start 2025.10.26 @ 15:02:00 End 2025.10.27 @ 11:46:14 Sessions 1 Manual Loads 0 Difficulty Explorer Special Mode None Game No. 29 Rogue 25 Adventurer 0 Explorer 4 Win Type - Total 0 Types 0/0/0/0/0/0/0/0/0/0 Lore% 13 Gallery% 14 Achievement% 13 Wizard Run 0 Options --------- Layout 1 ASCII 0 Keyboard 0 Movement Mouse Keybinds 0 Fullscreen 1 Font 24/Smallcaps Map View 50x35 Zoom Use 0% Tactical HUD 1 Map Filters NONE Filters NONE Steam 1 RUN: 857bcb0f-e9a2-4bcc-8440-5675ca5ccd32